bitfinex/quotes_ETHUSD_20230113
["timestamp","ask_amount","ask_price","bid_price","bid_amount"]
[1673633001509,7.0361539,1424.3,1424.1,1.567]
[1673633001685,7.1021539,1424.3,1424.1,1.567]
[1673633002371,0.0807639,1424.3,1424.1,1.567]
[1673633002526,7.02099,1424.3,1424.1,1.567]
[1673633002736,0.702099,1424.2,1424.0,1.574]
[1673633002948,15.024889,1424.2,1424.0,1.574]
[1673633003198,15.0576529,1424.2,1423.8,1.646]
[1673633003369,14.7780529,1424.2,1423.7,20.066]
[1673633003575,18.38438562,1424.2,1423.7,20.066]
[1673633003835,21.06771,1424.0,1423.7,0.066]
[1673633004025,21.06771,1424.0,1423.6,1.579]
[1673633004026,21.1004739,1424.0,1423.6,1.579]
[1673633004268,21.1004739,1424.0,1423.5,21.651]
[1673633004471,0.2797,1423.9,1423.5,21.651]
[1673633004783,0.2797,1423.9,1423.6,1.58]
[1673633004784,7.0231,1423.9,1423.6,1.58]
[1673633004998,7.0558639,1423.9,1423.6,1.58687289]
[1673633005319,16.21706129,1423.9,1423.6,1.58687289]
[1673633005629,0.0327639,1423.9,1423.6,5.19320561]
[1673633005788,7.30227,1424.0,1423.8,8.60245]
[1673633005789,0.0327639,1424.0,1423.8,8.60245]
[1673633005995,14.04465,1424.1,1423.8,1.645]
[1673633006245,7.02249,1424.0,1423.8,1.579]
[1673633006419,7.0552539,1424.0,1423.8,1.579]
[1673633006625,14.0777439,1424.0,1423.8,1.579]
[1673633007205,13.03211188,1424.0,1423.8,1.579]
[1673633007358,0.0327639,1424.0,1423.8,5.18533272]
[1673633007722,7.02222,1424.1,1423.8,5.25133272]
[1673633007914,0.0327639,1424.1,1423.9,1.58]
[1673633008135,12.50933364,1424.2,1423.9,1.58]
[1673633008314,5.48743364,1424.2,1423.9,1.58]
[1673633008729,13.760185,1424.2,1423.8,21.645]
[1673633009533,13.760185,1424.2,1423.8,20.066]
[1673633009893,16.260185,1424.2,1423.8,0.066]
[1673633010156,13.760185,1424.2,1423.6,22.1639]
[1673633010469,13.760185,1424.2,1423.6,25.77023272]
[1673633010688,21.06813,1424.0,1423.6,22.1639]
[1673633010856,21.1008939,1424.0,1423.6,21.637]
[1673633011940,0.0327639,1424.0,1423.6,32.26777272]
[1673633012146,6.92427831,1424.0,1423.8,1.58]
[1673633012364,15.51514828,1424.0,1423.8,1.58]
[1673633012944,15.51514828,1424.0,1423.6,21.638]
[1673633013382,22.53771828,1424.0,1423.6,17.00318435]
[1673633014035,22.53771828,1424.0,1423.6,15.43118435]
[1673633014386,22.53771828,1424.0,1423.6,0.066]
[1673633014387,21.07035,1423.8,1423.6,0.066]
[1673633014572,21.07035,1423.8,1423.3,9.8267]
[1673633014573,28.1265639,1423.8,1423.4,15.36518435]
[1673633014728,28.1265639,1423.8,1423.4,15.43118435]
[1673633016039,28.1265639,1423.8,1423.5,0.5269]
[1673633016214,21.1031139,1423.8,1423.4,17.01118435]
[1673633016641,7.02213,1424.1,1423.9,3.68507138]
[1673633016995,7.08797,1424.1,1423.9,3.68507138]
[1673633017162,16.34818514,1424.1,1423.9,3.68507138]
[1673633017381,0.066,1424.1,1423.9,3.68507138]
[1673633017734,14.0435,1424.2,1423.9,3.68507138]
[1673633017878,7.08755,1424.2,1423.9,3.68507138]
[1673633018255,7.08765,1424.2,1423.9,7.2914041]
[1673633018472,14.1093,1424.2,1423.9,3.75107138]
[1673633018642,16.222342,1424.2,1423.9,3.68507138]
[1673633018825,16.222342,1424.2,1423.9,7.2914041]
[1673633018826,0.066,1424.2,1423.9,7.2914041]
[1673633019038,7.02151,1424.2,1423.9,7.3574041]
[1673633019423,7.08751,1424.2,1423.9,7.3574041]
[1673633019840,0.066,1424.2,1424.1,1.579]
[1673633019986,4.34800464,1424.4,1424.1,1.579]
[1673633020357,7.02049,1424.4,1424.1,5.18533272]
[1673633020523,0.066,1424.4,1424.1,5.25133272]
[1673633020877,31.2044538,1424.6,1424.5,4.57834391]
[1673633020878,0.8344538,1424.6,1424.5,4.57834391]
[1673633021046,0.8344538,1424.6,1424.5,8.41467663]
[1673633021267,5.38e-05,1424.6,1424.5,8.77727663]
[1673633021474,0.23724378,1424.7,1424.5,8.77727663]
[1673633021681,0.23724378,1424.7,1424.6,0.5265]
[1673633022083,0.23724378,1424.7,1424.6,1.414]
[1673633022291,0.013074,1425.3,1424.7,2.5]
[1673633022504,30.43,1425.4,1424.8,3.60633272]
[1673633022505,0.066,1425.4,1424.8,3.60633272]
[1673633022711,0.067,1425.7,1425.0,3.60633272]
[1673633022712,0.007,1425.7,1425.0,3.60633272]
[1673633022957,13.98159,1425.4,1424.9,0.126]
[1673633023171,0.066,1425.4,1425.0,3.60633272]
[1673633023408,0.066,1425.5,1425.3,5.18633272]
[1673633023720,14.03039,1425.5,1425.3,0.066]
[1673633023943,1.403039,1425.4,1424.9,15.95758435]
[1673633024248,16.53237,1425.3,1424.9,15.43118435]
[1673633024396,1.577,1425.1,1424.9,0.066]
[1673633024613,31.22316,1425.0,1424.6,15.36518435]
[1673633024856,31.22316,1425.0,1424.5,4.57834391]
[1673633024857,21.05556,1424.8,1424.5,4.57834391]
[1673633025187,21.05853,1424.6,1424.5,4.57834391]
[1673633025506,21.12453,1424.6,1424.5,4.57834391]
[1673633026337,22.70453,1424.6,1424.5,4.57834391]
[1673633026505,22.70453,1424.6,1424.5,0.71274391]
[1673633026506,26.83736272,1424.6,1424.5,0.71274391]
[1673633026712,30.38050399,1424.6,1424.5,0.71274391]
[1673633027040,30.38050399,1424.6,1424.0,11.79713435]
[1673633027041,2.5,1424.5,1424.0,11.79713435]
[1673633027241,1.58,1424.3,1424.0,11.79713435]
[1673633027600,16.41829784,1424.2,1424.0,0.066]
[1673633027810,12.76741266,1424.2,1423.9,3.68507138]
[1673633029389,0.5267,1424.1,1423.9,3.68507138]
[1673633029596,7.02247,1424.0,1423.9,3.68507138]
[1673633029761,10.86909052,1424.0,1423.9,3.68507138]
[1673633030176,10.86909052,1424.0,1423.4,7.33901143]
[1673633030383,10.86909052,1424.0,1423.5,1.74250385]
[1673633030384,11.39579052,1424.0,1423.5,1.74250385]
[1673633030596,11.39579052,1424.0,1423.5,4.24250385]
[1673633030809,1.13957905,1423.9,1423.6,1.74249244]
[1673633031141,1.13957905,1423.9,1423.5,8.79276538]
[1673633031142,14.04644,1423.9,1423.5,8.79276538]
[1673633031328,14.04644,1423.9,1423.6,1.74249535]
[1673633031329,14.11244,1423.9,1423.6,1.74249535]
[1673633031680,7.08922,1423.9,1423.6,1.74249535]
[1673633031886,7.08922,1423.9,1423.5,8.79276538]
[1673633032279,14.11218,1423.9,1423.5,8.79276538]
[1673633032493,14.11218,1423.9,1423.5,7.74933272]
[1673633032494,7.08896,1423.9,1423.5,7.74933272]
[1673633032733,14.11192,1423.9,1423.5,8.79276538]
[1673633032952,14.11192,1423.9,1423.6,2.78395196]
[1673633033173,14.11192,1423.9,1423.6,1.04143266]
[1673633033494,16.3658069,1423.9,1423.7,1.7424699]
[1673633034231,23.3887669,1423.9,1423.7,1.7424699]
[1673633034547,23.3887669,1423.9,1423.8,1.74256967]
[1673633034744,23.9155669,1423.9,1423.8,1.74256967]
[1673633034957,23.3887669,1423.9,1423.8,1.74256967]
[1673633035170,23.9155669,1423.9,1423.8,1.74256967]
[1673633035392,23.9155669,1423.9,1423.7,1.04143266]
[1673633035539,2.39155669,1423.8,1423.5,0.054]
[1673633035909,2.39155669,1423.8,1423.5,0.002]
[1673633035910,21.07185,1423.7,1423.5,0.002]
[1673633036067,16.54888,1423.6,1423.5,0.002]
[1673633036279,14.11488,1423.6,1423.4,2.60361206]
[1673633036523,16.228763,1423.6,1423.4,2.60361206]
[1673633036909,18.60582097,1423.6,1423.4,2.60361206]
[1673633037117,11.58138097,1423.6,1423.4,2.60361206]
[1673633037790,14.88791022,1423.6,1423.4,2.60361206]
[1673633038163,21.91235022,1423.6,1423.4,2.60361206]
[1673633038408,16.24109502,1423.5,1423.4,2.60361206]
[1673633038618,16.30709502,1423.5,1423.4,2.60361206]
[1673633038845,16.30709502,1423.5,1423.3,2.65494153]
[1673633039020,23.33202502,1423.5,1423.3,2.58894153]
[1673633039840,23.33202502,1423.5,1423.2,0.066]
[1673633040059,23.33202502,1423.5,1423.2,3.60633272]
[1673633042294,3.027,1423.4,1423.2,3.60633272]
[1673633042632,3.027,1423.4,1423.1,0.062]
[1673633042633,2.5,1423.2,1423.1,0.062]
[1673633042948,2.5,1423.2,1422.5,2.64146699]
[1673633042949,34.21197272,1423.2,1422.5,0.02946699]
[1673633043259,7.0277,1423.0,1422.5,0.02946699]
[1673633043419,7.0277,1423.0,1422.5,1.55880956]
[1673633043420,7.0937,1423.0,1422.5,1.55880956]
[1673633043633,14.1214,1423.0,1422.8,2.07279757]
[1673633043909,11.66480449,1423.0,1422.8,2.07279757]
[1673633044192,11.66480449,1423.0,1422.7,4.74179757]
[1673633044384,11.66480449,1423.0,1422.7,4.67579757]
[1673633044575,11.66480449,1423.0,1422.8,1.55380173]
[1673633045765,11.66480449,1423.0,1422.8,2.58956215]
[1673633045954,8.19438045,1422.9,1422.8,2.58956215]
[1673633046164,15.28828045,1422.9,1422.8,1.03576042]
[1673633046368,22.31618045,1422.9,1422.7,2.65556215]
[1673633046564,22.31618045,1422.9,1422.7,1.03576042]
[1673633046990,28.01971317,1422.9,1422.6,1.10176042]
[1673633047238,1.18538634,1422.8,1422.6,1.03576042]
[1673633047455,28.11552,1422.7,1422.5,2.61902914]
[1673633047674,29.77876197,1422.7,1422.5,1.06522741]
[1673633047981,26.05867907,1422.7,1422.5,1.06522741]
[1673633048300,0.066,1422.7,1422.5,18.25070914]
[1673633048462,0.5272,1422.9,1422.5,27.38091186]
[1673633048666,0.5271,1423.0,1422.7,7.02888]
[1673633048882,0.5271,1423.0,1422.7,0.066]
[1673633049125,0.5271,1423.0,1422.6,0.066]
[1673633049126,7.55457,1423.0,1422.6,0.066]
[1673633049310,16.815545,1423.0,1422.5,14.30711013]
[1673633049642,16.815545,1423.0,1422.5,1.13122741]
[1673633049643,23.843015,1423.0,1422.5,1.13122741]
[1673633049875,23.843015,1423.0,1422.5,1.06522741]
[1673633049876,6.10633272,1422.9,1422.5,1.06522741]
[1673633050184,21.69610327,1422.8,1422.5,0.02946699]
[1673633050404,22.28930327,1422.8,1422.5,0.02946699]
[1673633050616,31.00895476,1422.8,1422.5,0.02946699]
[1673633050766,31.00895476,1422.8,1422.3,1.03576042]
[1673633050767,21.08814,1422.6,1422.3,1.03576042]
[1673633051148,21.09111,1422.4,1422.2,1.03576042]
[1673633051299,21.15711,1422.4,1422.1,1.03576042]
[1673633051658,2.80595567,1422.4,1422.1,1.03576042]
[1673633051868,0.5933,1422.5,1422.1,1.03576042]
[1673633052087,0.5273,1422.5,1422.2,3.60633272]
[1673633052293,0.5273,1422.6,1422.2,2.58956215]
[1673633052505,7.0296,1422.6,1422.2,4.17209278]
[1673633052820,7.0296,1422.6,1422.2,0.00353063]
[1673633052821,14.1252,1422.6,1422.2,0.00353063]
[1673633053132,1.41252,1422.5,1422.1,1.03576042]
[1673633053291,28.12188,1422.4,1422.0,1.03576042]
[1673633053499,28.12188,1422.4,1421.9,0.066]
[1673633053500,3.60633272,1422.3,1421.9,0.066]
[1673633053745,3.60633272,1422.3,1421.8,1.07240861]
[1673633053746,4.074,1422.1,1421.8,0.03664819]
[1673633053958,21.09702,1422.0,1421.8,0.03664819]
[1673633054151,16.51126146,1422.0,1421.8,0.03664819]
[1673633054342,20.11759418,1422.0,1421.8,0.03664819]
[1673633054551,2.44658146,1422.0,1421.8,0.03664819]
[1673633054844,0.5935,1422.1,1421.8,0.03664819]
[1673633055054,0.5275,1422.1,1421.8,0.99660471]
[1673633055372,0.002,1422.1,1421.8,0.03664819]
[1673633055524,7.62489,1422.2,1421.8,0.03664819]
[1673633055733,14.6567,1422.2,1421.8,0.03664819]
[1673633055945,16.825492,1422.2,1421.8,0.03664819]
[1673633056944,27.46363472,1422.2,1421.8,0.03664819]
[1673633057469,0.01973,1422.1,1421.8,0.03664819]
[1673633057697,14.06468,1422.0,1421.8,0.03664819]
[1673633057838,14.01541977,1422.0,1421.8,0.03664819]
[1673633058049,1.40154198,1421.9,1421.8,0.03664819]
[1673633058310,15.46722198,1421.9,1421.8,0.03664819]
[1673633058531,15.53322198,1421.9,1421.8,0.03664819]
[1673633058674,15.55295198,1421.9,1421.8,0.03664819]
[1673633058891,14.15141,1421.9,1421.8,0.03664819]
[1673633059197,21.16452,1421.9,1421.8,0.03664819]
[1673633061300,16.51225218,1421.9,1421.8,0.03664819]
[1673633065940,16.51225218,1421.9,1421.8,0.03970491]
[1673633065941,0.066,1421.9,1421.8,0.03970491]
[1673633066156,7.03284,1421.9,1421.8,0.03970491]
[1673633066472,7.09884,1421.9,1421.8,0.03970491]
[1673633066885,14.13168,1421.9,1421.8,0.03970491]
[1673633067512,21.16452,1421.9,1421.8,0.03970491]
[1673633067729,19.36967833,1421.9,1421.8,0.03970491]
[1673633068094,15.64799854,1421.9,1421.8,0.03970491]
[1673633068409,10.9959102,1421.9,1421.8,0.03970491]
[1673633068794,3.9630702,1421.9,1421.8,0.03970491]
[1673633068999,21.16403,1422.0,1421.8,0.03970491]
[1673633069439,21.16403,1422.0,1421.8,0.03664819]
[1673633069660,2.5,1421.9,1421.8,0.03664819]
[1673633069861,23.59852,1421.9,1421.8,0.03664819]
[1673633070185,23.66452,1421.9,1421.8,0.03664819]
[1673633070384,24.19202,1421.9,1421.8,0.03664819]
[1673633070987,14.13168,1421.9,1421.8,0.03664819]
[1673633071192,21.69202,1421.9,1421.8,0.03664819]
[1673633071456,23.51011998,1421.9,1421.8,0.03664819]
[1673633072626,20.71857631,1421.9,1421.8,0.03664819]
[1673633073235,20.66857631,1421.9,1421.8,0.03664819]
[1673633074717,18.32297633,1421.9,1421.8,0.03664819]
[1673633074889,8.51284,1421.9,1421.8,0.03664819]
[1673633075239,22.57852,1421.9,1421.8,0.03664819]
[1673633076710,23.10602,1421.9,1421.8,0.03664819]
[1673633076884,26.71235272,1421.9,1421.8,0.03664819]
[1673633077097,30.79012199,1421.9,1421.8,0.03664819]
[1673633079827,37.82296199,1421.9,1421.8,8.19e-06]
[1673633080071,43.69098737,1421.9,1421.7,0.02946699]
[1673633080277,24.70632272,1421.8,1421.7,0.02946699]
[1673633080487,2.5,1421.7,1421.6,0.04924196]
[1673633080680,24.70782272,1421.7,1421.6,1.79427231]
[1673633080892,24.77382272,1421.7,1421.6,1.79427231]
[1673633083016,24.77382272,1421.7,1421.6,0.04924196]
[1673633084225,24.77382272,1421.7,1421.6,1.96e-06]
[1673633084439,29.11065657,1421.7,1421.6,1.96e-06]
[1673633084696,32.11065657,1421.7,1421.6,1.96e-06]
[1673633084967,38.17030298,1421.7,1421.6,1.96e-06]
[1673633085291,42.39830298,1421.7,1421.6,1.96e-06]
[1673633085706,42.39830298,1421.7,1421.0,1.66667992]
[1673633085995,5.68333272,1421.4,1421.1,1.74561751]
[1673633086187,27.71376272,1421.3,1421.1,1.74561751]
[1673633086496,17.67893272,1421.2,1421.1,1.74561751]
[1673633086705,17.74493272,1421.2,1421.1,1.74561751]
[1673633087078,16.69754023,1421.2,1421.0,0.04687819]
[1673633087286,3.60633272,1421.1,1421.0,0.04687819]
[1673633087656,16.30834989,1421.1,1421.0,0.04687819]
[1673633087971,16.37434989,1421.1,1421.0,0.04687819]
[1673633088860,23.41114989,1421.1,1421.0,0.04687819]
[1673633089960,16.37434989,1421.1,1421.0,0.04687819]
[1673633090155,13.09050928,1421.1,1421.0,0.04687819]
[1673633090347,20.12730928,1421.1,1421.0,0.04687819]
[1673633090782,23.733642,1421.1,1421.0,0.04687819]
[1673633091003,20.12730928,1421.1,1421.0,0.04687819]
[1673633091208,0.066,1421.1,1421.0,1.46087819]
[1673633091397,7.03645,1421.2,1421.0,1.76234618]
[1673633091398,7.10246,1421.2,1421.0,1.76234618]
[1673633091625,7.0368,1421.1,1421.0,0.34834618]
[1673633091961,7.1028,1421.1,1421.0,1.76234618]
[1673633092347,0.82700001,1421.3,1421.0,15.83692618]
[1673633092576,0.82700001,1421.3,1421.2,1.581]
[1673633092752,7.86281001,1421.3,1421.2,1.581]
[1673633092961,7.92881001,1421.3,1421.2,1.581]
[1673633093407,0.89300001,1421.3,1421.2,1.581]
[1673633093713,14.89862001,1421.3,1421.1,6.85603467]
[1673633093925,14.96462001,1421.3,1421.1,5.27503467]
[1673633094376,25.60676273,1421.3,1421.1,5.27503467]
[1673633094644,26.56204758,1421.3,1421.1,4.72077663]
[1673633094853,3.60633272,1421.2,1421.1,4.65477663]
[1673633095104,17.67893272,1421.2,1421.1,4.65477663]
[1673633095383,23.60481648,1421.2,1421.1,4.65477663]
[1673633096146,26.60481648,1421.2,1421.1,4.65477663]
[1673633096956,33.64111648,1421.2,1421.1,4.65477663]
[1673633097596,35.21811648,1421.2,1421.1,4.65477663]
[1673633097797,35.30032648,1421.2,1421.1,4.65477663]
[1673633098009,35.30032648,1421.2,1421.1,3.81013257]
[1673633098251,3.81,1421.1,1420.8,0.04015426]
[1673633098463,38.37741286,1421.0,1420.8,0.04015426]
[1673633098764,13.64412272,1420.9,1420.8,0.04015426]
[1673633098953,27.86791272,1420.9,1420.8,0.04015426]
[1673633099161,27.86791272,1420.9,1420.8,4.26e-06]
[1673633099435,29.67891272,1420.9,1420.8,4.26e-06]
[1673633099735,39.10368538,1420.9,1420.8,4.26e-06]
[1673633099926,39.10414478,1420.9,1420.8,4.26e-06]
[1673633100182,2.5,1420.8,1420.6,0.03834807]
[1673633100359,2.5,1420.8,1420.4,0.89278621]
[1673633100360,10.64511272,1420.7,1420.4,0.89278621]
[1673633100569,7.03977,1420.5,1420.4,0.89278621]
[1673633100834,31.83141272,1420.5,1420.4,0.89278621]
[1673633101046,38.31455399,1420.5,1420.4,0.89278621]
[1673633101411,38.39679399,1420.5,1420.4,0.89278621]
[1673633101876,31.35702399,1420.5,1420.4,0.89278621]
[1673633102050,31.27478399,1420.5,1420.4,0.89278621]
[1673633103142,33.97778399,1420.5,1420.2,0.05833241]
[1673633103355,2.5,1420.3,1419.9,0.5943]
[1673633103547,2.5,1420.3,1419.8,1.04110567]
[1673633103548,31.77177272,1420.2,1419.8,0.5283]
[1673633103792,3.60633272,1420.1,1419.8,0.5283]
[1673633104088,18.26672221,1420.0,1419.8,0.5283]
[1673633104263,14.89680493,1420.0,1419.6,3.21150567]
[1673633104455,7.85455493,1420.0,1419.6,3.14550567]
[1673633104665,3.60633272,1419.9,1419.6,3.14550567]
[1673633104918,10.64908272,1419.9,1419.6,3.14550567]
[1673633105135,10.71508272,1419.9,1419.6,1.56950567]
[1673633105346,7.10875,1419.9,1419.6,1.56950567]
[1673633105566,0.066,1419.9,1419.7,0.15695057]
[1673633105757,14.08387,1420.1,1419.9,0.12480036]
[1673633105758,14.14984,1420.1,1419.9,0.12480036]
[1673633106084,17.75617272,1420.1,1419.9,0.12480036]
[1673633106245,0.066,1420.1,1419.9,0.12480036]
[1673633106452,0.618,1420.0,1419.9,3.9962156]
[1673633106723,7.10684,1420.3,1419.9,11.0389156]
[1673633106931,24.79477272,1420.3,1419.9,4.0622156]
[1673633107097,24.79477272,1420.3,1419.9,1.70580036]
[1673633107098,3.60633272,1420.2,1419.9,1.70580036]
[1673633107308,10.59851027,1420.3,1419.9,8.74847036]
[1673633107585,17.75385272,1420.3,1419.9,1.77180036]
[1673633107878,22.99727536,1420.3,1419.9,1.70580036]
[1673633108033,12.35018264,1420.3,1419.9,1.70580036]
[1673633108398,0.066,1420.3,1419.9,5.31213308]
[1673633108569,10.70856401,1420.8,1420.2,1.58]
[1673633108570,7.03923,1420.7,1420.2,1.58]
[1673633108787,7.10523,1420.7,1420.2,8.62126]
[1673633108976,0.066,1420.7,1420.2,15.72852]
[1673633109185,0.528,1420.7,1420.2,15.72852]
[1673633109398,7.56678,1420.7,1420.3,0.00264379]
[1673633109658,7.10478,1420.7,1420.3,1.58364379]
[1673633109885,0.066,1420.7,1420.6,1.579]
[1673633110032,0.066,1421.0,1420.6,1.8949]
[1673633110243,7.10284,1421.1,1420.8,1.581]
[1673633110507,7.63064,1421.1,1420.8,1.581]
[1673633110660,11.23697272,1421.1,1420.8,1.581]
[1673633110875,13.06433899,1421.1,1420.8,1.581]
[1673633111082,0.042,1421.0,1420.8,1.581]
[1673633111367,0.042,1421.0,1420.9,1.581]
[1673633111973,0.042,1421.0,1420.9,8.61879]
[1673633112183,7.03466,1421.6,1421.0,2.5]
[1673633112184,0.5277,1421.4,1421.0,2.5]
[1673633112391,18.4818255,1421.7,1421.1,7.2893423]
[1673633112392,0.5277,1421.5,1421.1,7.2893423]
[1673633112709,0.5277,1421.5,1421.1,0.3186423]
[1673633112921,0.5276,1421.6,1421.1,0.0026423]
[1673633113236,4.13393272,1421.6,1421.2,1.581]
[1673633113600,11.16834272,1421.6,1421.2,1.581]
[1673633113806,11.23434272,1421.6,1421.2,1.581]
[1673633114074,13.37690454,1421.6,1421.2,1.581]
[1673633114504,13.37690454,1421.6,1421.1,1.581]
[1673633114660,3.60633272,1421.5,1421.1,1.581]
[1673633115172,3.60633272,1421.5,1421.0,4.6429]
[1673633115527,3.60633272,1421.4,1421.0,2.1089]
[1673633115718,24.71256272,1421.4,1421.0,1.581]
[1673633115918,24.77856272,1421.4,1421.0,1.581]
[1673633116604,21.17223,1421.4,1421.0,1.581]
[1673633116915,0.066,1421.4,1421.3,1.581]
[1673633117092,3.6847255,1421.7,1421.3,25.18843]
[1673633117093,3.0,1421.6,1421.3,25.18843]
[1673633117293,4.35705822,1421.7,1421.3,21.17343]
[1673633117502,0.6847255,1421.7,1421.3,21.17343]
[1673633117719,0.1571255,1421.7,1421.6,1.581]
[1673633118160,0.1571255,1421.7,1421.5,1.569]
[1673633118351,7.1911855,1421.7,1421.5,1.569]
[1673633118592,0.7507255,1421.7,1421.5,1.569]
[1673633118797,0.1571255,1421.7,1421.5,8.60361]
[1673633119124,0.1571255,1421.7,1421.6,1.58]
[1673633119299,0.1571255,1421.7,1421.6,8.61432]
[1673633119506,0.1571255,1421.7,1421.6,8.68032]
[1673633119907,0.1571255,1421.7,1421.6,15.71464]
[1673633120758,0.1571255,1421.7,1421.6,18.21464]
[1673633120965,0.1571255,1421.7,1421.6,18.95515462]
[1673633121309,0.1571255,1421.7,1421.6,27.55547462]
[1673633122275,2.55e-05,1421.7,1421.6,27.55547462]
[1673633122487,2.55e-05,1421.7,1421.6,28.08307462]
[1673633122661,3.5934,1422.2,1421.7,2.5]
[1673633122872,3.5274,1422.2,1421.9,1.581]
[1673633123108,3.5274,1422.2,1421.9,15.64665]
[1673633123436,0.5274,1422.2,1422.0,1.58]
[1673633123602,0.5274,1422.2,1422.1,7.03185]
[1673633123804,0.5274,1422.2,1422.1,7.06269]
[1673633124014,0.5274,1422.2,1422.1,1.48]
[1673633124221,0.5274,1422.2,1422.1,1.414]
[1673633124428,0.5274,1422.3,1422.1,1.414]
[1673633124640,2.39757834,1422.3,1422.1,1.414]
[1673633124867,16.03503106,1422.3,1422.0,1.646]
[1673633125074,21.09555,1422.1,1421.8,1.636]
[1673633125322,23.521105,1422.1,1421.8,1.57]
[1673633126687,16.489255,1422.1,1421.8,1.57]
[1673633127001,0.066,1422.1,1421.9,22.67952]
[1673633127221,16.10089106,1422.3,1421.9,8.67984]
[1673633127577,23.13210106,1422.3,1421.9,8.67984]
[1673633127823,16.10089106,1422.3,1421.9,8.67984]
[1673633128035,23.13187106,1422.3,1421.9,8.67984]
[1673633128786,11.96715834,1422.3,1421.9,8.67984]
[1673633129005,11.96714834,1422.3,1422.0,1.57]
[1673633129523,4.93617834,1422.3,1422.0,8.60225]
[1673633129689,4.87017834,1422.3,1422.0,8.66825]
[1673633129898,11.90107834,1422.3,1422.0,1.636]
[1673633130112,0.48701783,1422.2,1422.0,1.57]
[1673633130808,7.51845783,1422.2,1422.0,1.57]
[1673633130968,0.55301783,1422.2,1422.0,1.57]
[1673633131180,0.48701783,1422.2,1422.0,1.57]
[1673633132042,0.48701783,1422.2,1421.9,14.13129]
[1673633132043,0.48701783,1422.2,1421.9,8.67955]
[1673633132458,0.48701783,1422.2,1421.9,15.71239]
[1673633132670,11.96707834,1422.3,1421.9,15.71239]
[1673633132895,4.93617834,1422.3,1422.0,1.58]
[1673633133111,3.5933,1422.4,1422.1,21.09525]
[1673633133281,0.5273,1422.4,1422.1,22.74225]
[1673633135073,3.69541275,1422.5,1422.1,22.74225]
[1673633135282,10.72535275,1422.5,1422.3,1.581]
[1673633135494,0.76141275,1422.5,1422.4,8.61137]
[1673633135729,0.16811275,1422.5,1422.4,15.70774]
[1673633135896,0.16811275,1422.5,1422.4,8.67737]
[1673633136579,0.16811275,1422.5,1422.4,22.73811]
[1673633137392,0.16811275,1422.5,1422.4,15.70774]
[1673633138629,0.16811275,1422.5,1422.4,22.73811]
[1673633139050,0.18763167,1422.7,1422.5,2.5]
[1673633139313,0.18763167,1422.7,1422.6,8.61038]
[1673633139531,0.18763167,1422.7,1422.6,8.67638]
[1673633139684,0.18763167,1422.7,1422.6,15.70576]
[1673633139889,0.18763167,1422.7,1422.6,24.31614]
[1673633140741,0.18763167,1422.7,1422.6,1.647]
[1673633140954,0.18763167,1422.7,1422.6,1.581]
[1673633141953,14.24539167,1422.7,1422.5,0.066]
[1673633142120,14.31139167,1422.7,1422.4,1.581]
[1673633142522,16.44537584,1422.7,1422.4,1.581]
[1673633142938,9.41649584,1422.7,1422.4,8.61135]
[1673633143153,7.28251167,1422.7,1422.4,8.67735]
[1673633143418,14.31139167,1422.7,1422.4,1.647]
[1673633143729,7.28251167,1422.7,1422.4,8.61133]
[1673633143938,14.31139167,1422.7,1422.4,1.647]
[1673633144097,14.31139167,1422.7,1422.4,1.581]
[1673633144307,7.28251167,1422.7,1422.4,8.61121]
[1673633144576,7.28251167,1422.7,1422.4,8.67721]
[1673633144888,14.31139167,1422.7,1422.4,1.647]
[1673633145093,14.31139167,1422.7,1422.4,1.581]
[1673633145425,14.31139167,1422.7,1422.3,18.80552]
[1673633145426,3.60633272,1422.6,1422.3,0.066]
[1673633145570,17.66557272,1422.6,1422.1,1.647]
[1673633145784,0.5273,1422.5,1422.1,22.67631]
[1673633145991,0.5273,1422.5,1422.1,23.26981]
[1673633146202,0.5273,1422.6,1422.1,22.74231]
[1673633146515,0.5273,1422.6,1422.3,7.03078]
[1673633146723,0.5273,1422.6,1422.3,0.066]
[1673633146985,0.5273,1422.6,1422.2,8.67811]
[1673633147204,9.95704358,1422.6,1422.2,8.67811]
[1673633147403,10.02304358,1422.6,1422.2,1.647]
[1673633147622,17.05255358,1422.6,1422.2,1.581]
[1673633147779,17.05255358,1422.6,1422.2,8.61234]
[1673633148165,10.02304358,1422.6,1422.2,15.70969]
[1673633148536,10.02304358,1422.6,1422.2,22.74104]
[1673633148903,24.08180358,1422.6,1422.2,8.67834]
[1673633149152,24.08180358,1422.6,1422.2,1.647]
[1673633149348,24.08180358,1422.6,1422.2,1.581]
[1673633149927,2.40818036,1422.5,1422.2,1.581]
[1673633150342,9.43827036,1422.5,1422.2,1.581]
[1673633150722,9.50405036,1422.5,1422.2,1.581]
[1673633150896,9.50405036,1422.5,1422.2,15.64356]
[1673633150897,2.47418036,1422.5,1422.2,15.64356]
[1673633151114,14.58641,1422.6,1422.2,15.70956]
[1673633151115,0.5933,1422.6,1422.2,15.70956]
[1673633151447,0.5293,1422.6,1422.2,22.73891]
[1673633151659,0.5273,1422.6,1422.2,22.74091]
[1673633152260,2.32161584,1422.7,1422.3,1.581]
[1673633152261,0.18763167,1422.7,1422.3,1.581]
[1673633152480,3.18763167,1422.7,1422.4,1.57]
[1673633152682,3.18763167,1422.7,1422.4,8.60027]
[1673633152928,17.24550167,1422.7,1422.4,1.636]
[1673633153087,17.24550167,1422.7,1422.4,1.57]
[1673633153088,0.5273,1422.6,1422.4,1.57]
[1673633153293,3.78083167,1422.7,1422.4,8.60034]
[1673633153540,3.71483167,1422.7,1422.4,8.66634]
[1673633153779,0.18763167,1422.7,1422.6,1.58]
[1673633154090,0.18763167,1422.7,1422.6,17.21076]
[1673633154303,0.18763167,1422.7,1422.6,17.27676]
[1673633155032,0.18763167,1422.7,1422.6,24.30614]
[1673633157232,0.18763167,1422.7,1422.6,22.72614]
[1673633160485,0.19030836,1422.9,1422.6,32.95032185]
[1673633160694,0.19030836,1422.9,1422.8,3.162]
[1673633160855,0.19030836,1422.9,1422.8,31.27556]
[1673633161078,0.19030836,1422.9,1422.8,31.34156]
[1673633161315,0.19030836,1422.9,1422.8,22.73217]